[Event "*** Titled Tuesday Blitz"]
[Site "Chess.com"]
[Date "2021.04.27"]
[Round "3"]
[White "Yaryi_sergey"]
[Black "jacky72"]
[Result "0-1"]
[WhiteElo "2436"]
[BlackElo "2717"]
[TimeControl "180+1"]
[EndTime "10:28:20 PDT"]
[Termination "jacky72 won on time"]

1. Nf3 {[%clk 0:03:00.9]} 1... Nf6 {[%clk 0:02:59.6]} 2. g3 {[%clk 0:02:58.3]}
2... g6 {[%clk 0:03:00.5]} 3. Bg2 {[%clk 0:02:54.5]} 3... Bg7 {[%clk 0:03:01.4]}
4. O-O {[%clk 0:02:54.1]} 4... O-O {[%clk 0:03:02.3]} 5. d4 {[%clk 0:02:54]}
5... d6 {[%clk 0:03:03.2]} 6. c4 {[%clk 0:02:53.1]} 6... Nc6 {[%clk 0:03:03.7]}
7. d5 {[%clk 0:02:52.1]} 7... Na5 {[%clk 0:03:03.6]} 8. Nfd2 {[%clk 0:02:48.3]}
8... c5 {[%clk 0:03:03.7]} 9. dxc6 {[%clk 0:02:46.5]} 9... bxc6 {[%clk
0:03:02.7]} 10. Nc3 {[%clk 0:02:38.2]} 10... Rb8 {[%clk 0:03:02.3]} 11. Nb3
{[%clk 0:02:25]} 11... Nxc4 {[%clk 0:02:58.6]} 12. Bxc6 {[%clk 0:02:24.3]} 12...
Bh3 {[%clk 0:02:59.1]} 13. Bg2 {[%clk 0:02:23.1]} 13... Bxg2 {[%clk 0:02:59.3]}
14. Kxg2 {[%clk 0:02:23.4]} 14... Qb6 {[%clk 0:02:58.7]} 15. Rb1 {[%clk
0:02:15.7]} 15... Rfc8 {[%clk 0:02:56.8]} 16. Bg5 {[%clk 0:02:13.3]} 16... Qc6+
{[%clk 0:02:54.7]} 17. Kg1 {[%clk 0:02:08.9]} 17... Nxb2 {[%clk 0:02:55.1]} 18.
Rxb2 {[%clk 0:02:05.3]} 18... Qxc3 {[%clk 0:02:55.6]} 19. Bxf6 {[%clk 0:02:03]}
19... Bxf6 {[%clk 0:02:52.6]} 20. Rd2 {[%clk 0:02:03.3]} 20... a5 {[%clk
0:02:46.6]} 21. Rd3 {[%clk 0:01:57.8]} 21... Qb4 {[%clk 0:02:47]} 22. Qd2 {[%clk
0:01:54.4]} 22... a4 {[%clk 0:02:46.8]} 23. Nd4 {[%clk 0:01:50.9]} 23... Qxd2
{[%clk 0:02:41.5]} 24. Rxd2 {[%clk 0:01:50.5]} 24... a3 {[%clk 0:02:36.7]} 25.
Nb3 {[%clk 0:01:43.7]} 25... Rc4 {[%clk 0:02:33]} 26. Rfd1 {[%clk 0:01:41.6]}
26... Rbc8 {[%clk 0:02:31.6]} 27. Kg2 {[%clk 0:01:37]} 27... Rc2 {[%clk
0:02:31.2]} 28. e3 {[%clk 0:01:30.7]} 28... Rb2 {[%clk 0:02:31.1]} 29. Nd4
{[%clk 0:01:18.6]} 29... Bxd4 {[%clk 0:02:28]} 30. exd4 {[%clk 0:01:18.5]} 30...
Rcc2 {[%clk 0:02:26.9]} 31. Rxc2 {[%clk 0:01:15.5]} 31... Rxc2 {[%clk
0:02:27.8]} 32. Re1 {[%clk 0:01:14]} 32... Kf8 {[%clk 0:02:25.2]} 33. Ra1 {[%clk
0:01:11.6]} 33... Rd2 {[%clk 0:02:25.1]} 34. Re1 {[%clk 0:01:11.2]} 34... Rxa2
{[%clk 0:02:23.2]} 35. Re3 {[%clk 0:01:11.2]} 35... h5 {[%clk 0:02:14.8]} 36. d5
{[%clk 0:01:08.9]} 36... Ke8 {[%clk 0:02:06.9]} 37. h4 {[%clk 0:01:07.6]} 37...
Ra1 {[%clk 0:02:07]} 38. Rb3 {[%clk 0:01:05.2]} 38... Kd7 {[%clk 0:02:03.9]} 39.
Rb7+ {[%clk 0:01:04.8]} 39... Kd8 {[%clk 0:02:04.4]} 40. Ra7 {[%clk 0:01:04.7]}
40... Rd1 {[%clk 0:02:01.7]} 41. Ra8+ {[%clk 0:01:00.9]} 41... Kc7 {[%clk
0:02:01.2]} 42. Ra7+ {[%clk 0:01:00.8]} 42... Kb6 {[%clk 0:02:01.2]} 43. Rxa3
{[%clk 0:00:59.4]} 43... Rxd5 {[%clk 0:02:01.6]} 44. Ra8 {[%clk 0:00:54.6]}
44... Kc6 {[%clk 0:01:56.9]} 45. Ra7 {[%clk 0:00:53.5]} 45... Re5 {[%clk
0:01:55.7]} 46. f4 {[%clk 0:00:53.3]} 46... Re6 {[%clk 0:01:50.3]} 47. Kf3
{[%clk 0:00:52.6]} 47... Kd5 {[%clk 0:01:49.8]} 48. Ra5+ {[%clk 0:00:51.2]}
48... Kc4 {[%clk 0:01:49.1]} 49. Ra4+ {[%clk 0:00:49.5]} 49... Kb5 {[%clk
0:01:48.4]} 50. Ra7 {[%clk 0:00:48.2]} 50... d5 {[%clk 0:01:48.2]} 51. Rc7
{[%clk 0:00:47.8]} 51... d4 {[%clk 0:01:45.8]} 52. Rd7 {[%clk 0:00:40.7]} 52...
Kc4 {[%clk 0:01:45.4]} 53. Rc7+ {[%clk 0:00:40]} 53... Kd3 {[%clk 0:01:45.1]}
54. Rd7 {[%clk 0:00:39.7]} 54... Kc3 {[%clk 0:01:45]} 55. Kf2 {[%clk 0:00:38.1]}
55... d3 {[%clk 0:01:44.6]} 56. Rc7+ {[%clk 0:00:38.2]} 56... Kb2 {[%clk
0:01:44.1]} 57. Rb7+ {[%clk 0:00:37.8]} 57... Kc2 {[%clk 0:01:44.4]} 58. Rc7+
{[%clk 0:00:37.7]} 58... Kd1 {[%clk 0:01:44.6]} 59. Rc3 {[%clk 0:00:35.1]} 59...
d2 {[%clk 0:01:43.4]} 60. Rc7 {[%clk 0:00:34.6]} 60... f6 {[%clk 0:01:40.4]} 61.
Rc5 {[%clk 0:00:32.7]} 61... Re2+ {[%clk 0:01:35.1]} 62. Kf1 {[%clk 0:00:31.4]}
62... Re3 {[%clk 0:01:35.2]} 63. Kf2 {[%clk 0:00:30.4]} 63... Ra3 {[%clk
0:01:35.4]} 64. Rc6 {[%clk 0:00:26.4]} 64... e5 {[%clk 0:01:34.5]} 65. Rxf6
{[%clk 0:00:20.9]} 65... exf4 {[%clk 0:01:32.7]} 66. Rxf4 {[%clk 0:00:19.2]}
66... Kc2 {[%clk 0:01:31.9]} 67. Rc4+ {[%clk 0:00:18.9]} 67... Kd3 {[%clk
0:01:31.5]} 0-1

[Event "*** Titled Tuesday Blitz"]
[Site "Chess.com"]
[Date "2021.04.27"]
[Round "3"]
[White "canary2016"]
[Black "NaciSAN"]
[Result "0-1"]
[WhiteElo "1982"]
[BlackElo "2287"]
[TimeControl "180+1"]
[EndTime "10:28:21 PDT"]
[Termination "NaciSAN won by checkmate"]

1. d4 {[%clk 0:03:00.9]} 1... d6 {[%clk 0:02:58.8]} 2. c4 {[%clk 0:03:00.5]}
2... e5 {[%clk 0:02:47.8]} 3. dxe5 {[%clk 0:02:57.2]} 3... dxe5 {[%clk
0:02:47.6]} 4. Qxd8+ {[%clk 0:02:53.8]} 4... Kxd8 {[%clk 0:02:47]} 5. Nf3 {[%clk
0:02:54.3]} 5... f6 {[%clk 0:02:45.1]} 6. g3 {[%clk 0:02:49.2]} 6... Be6 {[%clk
0:02:43.3]} 7. b3 {[%clk 0:02:48]} 7... c6 {[%clk 0:02:39]} 8. Bg2 {[%clk
0:02:46.4]} 8... Nd7 {[%clk 0:02:38.4]} 9. O-O {[%clk 0:02:44]} 9... g6 {[%clk
0:02:33.4]} 10. Bb2 {[%clk 0:02:42]} 10... Kc7 {[%clk 0:02:28.5]} 11. Rd1 {[%clk
0:02:38.4]} 11... Bg7 {[%clk 0:02:25.1]} 12. Nc3 {[%clk 0:02:34.3]} 12... Ne7
{[%clk 0:02:24.5]} 13. Ne4 {[%clk 0:02:33.9]} 13... Nc8 {[%clk 0:02:03.8]} 14.
Ba3 {[%clk 0:02:29.7]} 14... Bf8 {[%clk 0:02:01.4]} 15. Bxf8 {[%clk 0:02:25.4]}
15... Rxf8 {[%clk 0:02:02.3]} 16. Rac1 {[%clk 0:02:23.1]} 16... Bf5 {[%clk
0:01:49.4]} 17. Nfd2 {[%clk 0:02:21.3]} 17... a5 {[%clk 0:01:26.4]} 18. f3
{[%clk 0:02:02.8]} 18... b6 {[%clk 0:01:20.4]} 19. g4 {[%clk 0:02:01.9]} 19...
Bxe4 {[%clk 0:01:19.1]} 20. Nxe4 {[%clk 0:02:01.1]} 20... Nc5 {[%clk 0:01:19.1]}
21. Nxc5 {[%clk 0:01:58.2]} 21... bxc5 {[%clk 0:01:20]} 22. Rd2 {[%clk
0:01:56.2]} 22... Rd8 {[%clk 0:01:18.1]} 23. Rcd1 {[%clk 0:01:56.1]} 23... Rxd2
{[%clk 0:01:17.6]} 24. Rxd2 {[%clk 0:01:56.3]} 24... a4 {[%clk 0:01:06.4]} 25.
Kf2 {[%clk 0:01:51.4]} 25... axb3 {[%clk 0:01:05.6]} 26. axb3 {[%clk 0:01:51.5]}
26... Ra3 {[%clk 0:01:04.7]} 27. Rd3 {[%clk 0:01:48.8]} 27... g5 {[%clk
0:00:59.7]} 28. Kg3 {[%clk 0:01:47.8]} 28... Ne7 {[%clk 0:00:58]} 29. h4 {[%clk
0:01:46.5]} 29... h6 {[%clk 0:00:56.5]} 30. e3 {[%clk 0:01:37.8]} 30... Ng6
{[%clk 0:00:55.2]} 31. hxg5 {[%clk 0:01:37.2]} 31... hxg5 {[%clk 0:00:55.1]} 32.
Bh3 {[%clk 0:01:04.9]} 32... Ra2 {[%clk 0:00:49.8]} 33. Bg2 {[%clk 0:00:55.9]}
33... Rb2 {[%clk 0:00:47.5]} 34. Bh3 {[%clk 0:00:55.2]} 34... Nf4 {[%clk
0:00:46.8]} 35. Bf1 {[%clk 0:00:08.7]} 35... Nxd3 {[%clk 0:00:42.9]} 36. Bxd3
{[%clk 0:00:08.8]} 36... Rxb3 {[%clk 0:00:43.8]} 37. Bf5 {[%clk 0:00:08.7]}
37... Rxe3 {[%clk 0:00:43.5]} 38. Kf2 {[%clk 0:00:08.7]} 38... Rc3 {[%clk
0:00:43]} 39. Be6 {[%clk 0:00:08.9]} 39... Kd6 {[%clk 0:00:42.7]} 40. Bg8 {[%clk
0:00:09]} 40... e4 {[%clk 0:00:40.4]} 41. fxe4 {[%clk 0:00:09]} 41... Ke5 {[%clk
0:00:40.6]} 42. Bf7 {[%clk 0:00:06.1]} 42... Kxe4 {[%clk 0:00:39.6]} 43. Be8
{[%clk 0:00:06.5]} 43... Kf4 {[%clk 0:00:37.5]} 44. Bxc6 {[%clk 0:00:05.3]}
44... Kxg4 {[%clk 0:00:36.7]} 45. Bd5 {[%clk 0:00:05.7]} 45... Kf4 {[%clk
0:00:36.7]} 46. Ke2 {[%clk 0:00:05.9]} 46... f5 {[%clk 0:00:36.7]} 47. Kf2
{[%clk 0:00:06.8]} 47... g4 {[%clk 0:00:36.6]} 48. Kf1 {[%clk 0:00:07.7]} 48...
Ke3 {[%clk 0:00:35.9]} 49. Kg2 {[%clk 0:00:07.3]} 49... f4 {[%clk 0:00:36.2]}
50. Kf1 {[%clk 0:00:07.2]} 50... f3 {[%clk 0:00:36.1]} 51. Kg1 {[%clk
0:00:07.7]} 51... Rc2 {[%clk 0:00:33.9]} 52. Kf1 {[%clk 0:00:08.6]} 52... Rc1#
{[%clk 0:00:33]} 0-1

[Event "*** Titled Tuesday Blitz"]
[Site "Chess.com"]
[Date "2021.04.27"]
[Round "3"]
[White "dbrankovic68"]
[Black "LamaChampetre"]
[Result "1-0"]
[WhiteElo "2459"]
[BlackElo "2209"]
[TimeControl "180+1"]
[EndTime "10:28:22 PDT"]
[Termination "dbrankovic68 won by resignation"]

1. e4 {[%clk 0:02:59.7]} 1... c5 {[%clk 0:02:59.5]} 2. Nf3 {[%clk 0:02:59.1]}
2... g6 {[%clk 0:02:59.5]} 3. h4 {[%clk 0:02:54.7]} 3... Nc6 {[%clk 0:02:59.1]}
4. h5 {[%clk 0:02:54.7]} 4... Bg7 {[%clk 0:02:59.2]} 5. d3 {[%clk 0:02:53.2]}
5... d5 {[%clk 0:02:59.2]} 6. h6 {[%clk 0:02:51.2]} 6... Bf6 {[%clk 0:02:59.1]}
7. exd5 {[%clk 0:02:50.1]} 7... Qxd5 {[%clk 0:02:58.4]} 8. Nc3 {[%clk
0:02:50.5]} 8... Qd8 {[%clk 0:02:55.5]} 9. Ne4 {[%clk 0:02:50.2]} 9... Bg4
{[%clk 0:02:43.3]} 10. Nxf6+ {[%clk 0:02:43.8]} 10... Nxf6 {[%clk 0:02:44.2]}
11. Be2 {[%clk 0:02:44]} 11... O-O {[%clk 0:02:38]} 12. O-O {[%clk 0:02:35.6]}
12... Qd7 {[%clk 0:02:36.5]} 13. Bg5 {[%clk 0:02:33.7]} 13... Qf5 {[%clk
0:02:32.3]} 14. Qd2 {[%clk 0:02:33.2]} 14... Rad8 {[%clk 0:02:22.1]} 15. Nh4
{[%clk 0:02:30.1]} 15... Qc8 {[%clk 0:02:15.7]} 16. f3 {[%clk 0:02:30.1]} 16...
Be6 {[%clk 0:02:06.1]} 17. g4 {[%clk 0:02:24.6]} 17... Nd4 {[%clk 0:01:58.2]}
18. Bd1 {[%clk 0:02:23.7]} 18... b5 {[%clk 0:01:42.1]} 19. Ng2 {[%clk
0:02:22.7]} 19... Bd5 {[%clk 0:01:29.3]} 20. Nf4 {[%clk 0:02:07.6]} 20... Ne6
{[%clk 0:01:20.8]} 21. Nxe6 {[%clk 0:01:59.2]} 21... Qxe6 {[%clk 0:01:20.2]} 22.
Qe3 {[%clk 0:01:52.3]} 22... Qxe3+ {[%clk 0:01:14.8]} 23. Bxe3 {[%clk
0:01:51.5]} 23... c4 {[%clk 0:01:11.2]} 24. Bxa7 {[%clk 0:01:42.8]} 24... Rd7
{[%clk 0:01:05.6]} 25. Bc5 {[%clk 0:01:41.1]} 25... Rc8 {[%clk 0:01:04.2]} 26.
d4 {[%clk 0:01:37.6]} 26... e5 {[%clk 0:00:53.2]} 27. c3 {[%clk 0:01:22]} 27...
e4 {[%clk 0:00:36.8]} 28. f4 {[%clk 0:01:21.8]} 28... e3 {[%clk 0:00:33.7]} 29.
Re1 {[%clk 0:01:15.1]} 29... Re8 {[%clk 0:00:22.7]} 30. g5 {[%clk 0:01:14.6]}
30... Ne4 {[%clk 0:00:15]} 31. Rxe3 {[%clk 0:01:13.5]} 31... f5 {[%clk
0:00:15.3]} 32. Bf3 {[%clk 0:01:07]} 32... Kf7 {[%clk 0:00:13.9]} 33. Rae1
{[%clk 0:01:06.6]} 33... Ra8 {[%clk 0:00:12.5]} 34. Ba3 {[%clk 0:01:04.1]} 34...
Rc8 {[%clk 0:00:11.4]} 35. Bd1 {[%clk 0:00:58.6]} 35... Ra8 {[%clk 0:00:10.2]}
36. Bc2 {[%clk 0:00:58.5]} 36... Rc8 {[%clk 0:00:09.7]} 37. Bb4 {[%clk
0:00:58.5]} 37... Ra8 {[%clk 0:00:09.6]} 38. Ra1 {[%clk 0:00:58.6]} 38... Rda7
{[%clk 0:00:08.6]} 39. a3 {[%clk 0:00:57.3]} 39... Ra6 {[%clk 0:00:07.8]} 40.
Rb1 {[%clk 0:00:50.5]} 40... R6a7 {[%clk 0:00:07.9]} 41. Rbe1 {[%clk 0:00:50.2]}
41... Ra6 {[%clk 0:00:08]} 42. Kh2 {[%clk 0:00:49.1]} 42... R6a7 {[%clk
0:00:08.1]} 43. Kg1 {[%clk 0:00:49]} 43... Ra6 {[%clk 0:00:08.4]} 44. Bxe4
{[%clk 0:00:49.4]} 44... Bxe4 {[%clk 0:00:07.5]} 45. Rxe4 {[%clk 0:00:49.5]}
45... fxe4 {[%clk 0:00:07.2]} 46. Rxe4 {[%clk 0:00:50.1]} 46... R8a7 {[%clk
0:00:06.8]} 47. Re5 {[%clk 0:00:49.9]} 47... Rb7 {[%clk 0:00:06.3]} 48. Kf2
{[%clk 0:00:46.5]} 48... Re6 {[%clk 0:00:06.2]} 49. Rc5 {[%clk 0:00:46]} 49...
Re4 {[%clk 0:00:06.1]} 50. Kf3 {[%clk 0:00:45.4]} 50... Re1 {[%clk 0:00:06]} 51.
Rc8 {[%clk 0:00:45]} 51... Rb1 {[%clk 0:00:05.7]} 52. Rh8 {[%clk 0:00:44.7]}
52... Rxb2 {[%clk 0:00:05.4]} 53. Rxh7+ {[%clk 0:00:44.1]} 53... Ke6 {[%clk
0:00:04.4]} 54. Rxb7 {[%clk 0:00:43.9]} 1-0

[Event "*** Titled Tuesday Blitz"]
[Site "Chess.com"]
[Date "2021.04.27"]
[Round "3"]
[White "Elshan1985"]
[Black "PlotnikovPavel"]
[Result "1-0"]
[WhiteElo "2884"]
[BlackElo "2468"]
[TimeControl "180+1"]
[EndTime "10:28:24 PDT"]
[Termination "Elshan1985 won on time"]

1. Nf3 {[%clk 0:03:00.9]} 1... Nf6 {[%clk 0:02:59.1]} 2. g3 {[%clk 0:03:01.8]}
2... d5 {[%clk 0:02:56]} 3. Bg2 {[%clk 0:03:02.4]} 3... e6 {[%clk 0:02:56.1]} 4.
O-O {[%clk 0:03:03.3]} 4... Be7 {[%clk 0:02:56.4]} 5. c4 {[%clk 0:03:03.8]} 5...
O-O {[%clk 0:02:56.9]} 6. d4 {[%clk 0:03:04]} 6... dxc4 {[%clk 0:02:56.5]} 7.
Qa4 {[%clk 0:03:03.2]} 7... a6 {[%clk 0:02:52.7]} 8. Qxc4 {[%clk 0:03:03.7]}
8... b5 {[%clk 0:02:52.3]} 9. Qc2 {[%clk 0:03:04.6]} 9... Bb7 {[%clk 0:02:52.8]}
10. Rd1 {[%clk 0:03:04.5]} 10... Be4 {[%clk 0:02:45.2]} 11. Qb3 {[%clk
0:03:02.5]} 11... Bd5 {[%clk 0:02:42.2]} 12. Qc2 {[%clk 0:03:01.6]} 12... Be4
{[%clk 0:02:42.2]} 13. Qb3 {[%clk 0:03:01.3]} 13... Bd5 {[%clk 0:02:42.4]} 14.
Qe3 {[%clk 0:03:01.5]} 14... b4 {[%clk 0:02:31.6]} 15. h3 {[%clk 0:02:58.9]}
15... Qc8 {[%clk 0:02:29.2]} 16. Nbd2 {[%clk 0:02:51.4]} 16... c5 {[%clk
0:02:26.5]} 17. b3 {[%clk 0:02:48.4]} 17... cxd4 {[%clk 0:02:19]} 18. Nxd4
{[%clk 0:02:49.3]} 18... Bxg2 {[%clk 0:02:13.9]} 19. Kxg2 {[%clk 0:02:50.2]}
19... Nd5 {[%clk 0:02:14.3]} 20. Qf3 {[%clk 0:02:48]} 20... Qc3 {[%clk
0:02:06.8]} 21. Qxc3 {[%clk 0:02:41.2]} 21... bxc3 {[%clk 0:02:04.2]} 22. Nc4
{[%clk 0:02:38.6]} 22... Bc5 {[%clk 0:01:37]} 23. Nc2 {[%clk 0:02:37.2]} 23...
Nc6 {[%clk 0:01:33.5]} 24. a3 {[%clk 0:02:36.5]} 24... a5 {[%clk 0:01:30.8]} 25.
e4 {[%clk 0:02:36.4]} 25... Nf6 {[%clk 0:01:20.9]} 26. f3 {[%clk 0:02:36.1]}
26... Rab8 {[%clk 0:01:18.4]} 27. Rb1 {[%clk 0:02:36.1]} 27... e5 {[%clk
0:01:09.2]} 28. Be3 {[%clk 0:02:22.9]} 28... Bxe3 {[%clk 0:00:59.9]} 29. N4xe3
{[%clk 0:02:22.6]} 29... Rfd8 {[%clk 0:00:50.2]} 30. Rxd8+ {[%clk 0:02:09.9]}
30... Rxd8 {[%clk 0:00:48]} 31. Rd1 {[%clk 0:02:07.7]} 31... Rxd1 {[%clk
0:00:43.5]} 32. Nxd1 {[%clk 0:02:08.6]} 32... Nd4 {[%clk 0:00:43.9]} 33. Nde3
{[%clk 0:02:09.1]} 33... Nxb3 {[%clk 0:00:40.6]} 34. Kf2 {[%clk 0:02:09.7]}
34... Kf8 {[%clk 0:00:38.5]} 35. Ke2 {[%clk 0:02:09.9]} 35... Nc1+ {[%clk
0:00:36.2]} 36. Kd1 {[%clk 0:02:07.6]} 36... Nd3 {[%clk 0:00:36.4]} 37. Ke2
{[%clk 0:02:08.1]} 37... Nb2 {[%clk 0:00:35.3]} 38. Nd1 {[%clk 0:02:02.4]} 38...
Nxd1 {[%clk 0:00:35.5]} 39. Kxd1 {[%clk 0:02:03.3]} 39... Nh5 {[%clk 0:00:36.1]}
40. g4 {[%clk 0:02:01.9]} 40... Nf4 {[%clk 0:00:36.4]} 41. Ne3 {[%clk
0:02:02.5]} 41... Nxh3 {[%clk 0:00:34.6]} 42. Nc4 {[%clk 0:02:03]} 42... f6
{[%clk 0:00:29.9]} 43. Nxa5 {[%clk 0:02:02]} 43... Ke7 {[%clk 0:00:27.4]} 44.
Nb7 {[%clk 0:01:46.2]} 44... Kd7 {[%clk 0:00:26.9]} 45. Nc5+ {[%clk 0:01:45.5]}
45... Kd6 {[%clk 0:00:26.2]} 46. Nd3 {[%clk 0:01:45.1]} 46... g6 {[%clk
0:00:20.9]} 47. Kc2 {[%clk 0:01:44.6]} 47... Nf4 {[%clk 0:00:15.5]} 48. Nf2
{[%clk 0:01:12.1]} 48... Ne2 {[%clk 0:00:10]} 49. Kd3 {[%clk 0:01:04]} 49... c2
{[%clk 0:00:10.5]} 50. Kxc2 {[%clk 0:01:02.5]} 50... Nd4+ {[%clk 0:00:11.1]} 51.
Kd3 {[%clk 0:01:02.9]} 51... Nxf3 {[%clk 0:00:12]} 52. Kc4 {[%clk 0:01:03.5]}
52... Nd2+ {[%clk 0:00:11.6]} 53. Kb5 {[%clk 0:01:03.1]} 53... h5 {[%clk
0:00:11.6]} 54. gxh5 {[%clk 0:01:03]} 54... gxh5 {[%clk 0:00:11.7]} 55. a4
{[%clk 0:01:03.9]} 55... Kc7 {[%clk 0:00:11.3]} 56. Kc5 {[%clk 0:01:00.4]} 56...
h4 {[%clk 0:00:10.3]} 57. Kd5 {[%clk 0:01:00.6]} 57... Kd7 {[%clk 0:00:08.4]}
58. a5 {[%clk 0:01:00.9]} 58... Nf3 {[%clk 0:00:03.1]} 59. Ng4 {[%clk
0:00:53.1]} 1-0

[Event "*** Titled Tuesday Blitz"]
[Site "Chess.com"]
[Date "2021.04.27"]
[Round "3"]
[White "Mihnea2017"]
[Black "YaWaleriy"]
[Result "1-0"]
[WhiteElo "2451"]
[BlackElo "2258"]
[TimeControl "180+1"]
[EndTime "10:28:24 PDT"]
[Termination "Mihnea2017 won by checkmate"]

1. e4 {[%clk 0:03:00.9]} 1... e5 {[%clk 0:02:59.9]} 2. Nf3 {[%clk 0:03:00.8]}
2... Nc6 {[%clk 0:02:59.8]} 3. Nc3 {[%clk 0:03:01]} 3... Nf6 {[%clk 0:02:59.2]}
4. d4 {[%clk 0:03:01.2]} 4... exd4 {[%clk 0:02:58.9]} 5. Nxd4 {[%clk 0:03:02.1]}
5... Bb4 {[%clk 0:02:58.7]} 6. Nxc6 {[%clk 0:03:01.7]} 6... bxc6 {[%clk
0:02:58.8]} 7. Bd3 {[%clk 0:03:02.3]} 7... d5 {[%clk 0:02:58.7]} 8. exd5 {[%clk
0:03:00]} 8... cxd5 {[%clk 0:02:58.8]} 9. O-O {[%clk 0:03:00]} 9... O-O {[%clk
0:02:58.7]} 10. h3 {[%clk 0:02:59.9]} 10... c6 {[%clk 0:02:42]} 11. Qf3 {[%clk
0:02:59.7]} 11... Re8 {[%clk 0:02:39.1]} 12. Bg5 {[%clk 0:02:58.7]} 12... Be7
{[%clk 0:02:38.9]} 13. Rfe1 {[%clk 0:02:56.2]} 13... Be6 {[%clk 0:02:38.2]} 14.
Na4 {[%clk 0:02:55.4]} 14... h6 {[%clk 0:02:37.8]} 15. Bh4 {[%clk 0:02:54.8]}
15... Rb8 {[%clk 0:02:29.6]} 16. b3 {[%clk 0:02:51.8]} 16... Rb4 {[%clk
0:02:20.7]} 17. Bg3 {[%clk 0:02:43.4]} 17... Bd6 {[%clk 0:02:20.3]} 18. c3
{[%clk 0:02:38.8]} 18... Rb8 {[%clk 0:02:12.5]} 19. Rad1 {[%clk 0:02:33.4]}
19... Qc7 {[%clk 0:02:08.1]} 20. Bxd6 {[%clk 0:02:31.7]} 20... Qxd6 {[%clk
0:02:07.2]} 21. c4 {[%clk 0:02:31.4]} 21... Qa3 {[%clk 0:01:42]} 22. Nc3 {[%clk
0:01:10.4]} 22... dxc4 {[%clk 0:01:38.7]} 23. Bxc4 {[%clk 0:01:10]} 23... Bxc4
{[%clk 0:01:33.9]} 24. bxc4 {[%clk 0:01:10.9]} 24... Qc5 {[%clk 0:01:18.7]} 25.
Qf4 {[%clk 0:00:55.6]} 25... Rbc8 {[%clk 0:00:48.1]} 26. Rxe8+ {[%clk
0:00:42.8]} 26... Rxe8 {[%clk 0:00:47.6]} 27. Rb1 {[%clk 0:00:43.2]} 27... Re6
{[%clk 0:00:18.5]} 28. Rb7 {[%clk 0:00:38]} 28... g5 {[%clk 0:00:17.6]} 29. Qb8+
{[%clk 0:00:32.9]} 29... Kg7 {[%clk 0:00:16.7]} 30. Qxa7 {[%clk 0:00:30.4]}
30... Qxc4 {[%clk 0:00:15.8]} 31. Rxf7+ {[%clk 0:00:29.8]} 31... Kg6 {[%clk
0:00:13.7]} 32. Rg7+ {[%clk 0:00:28.4]} 32... Kf5 {[%clk 0:00:13.2]} 33. Qa5+
{[%clk 0:00:13]} 33... c5 {[%clk 0:00:12.2]} 34. g3 {[%clk 0:00:06.2]} 34...
Re1+ {[%clk 0:00:09.1]} 35. Kh2 {[%clk 0:00:06.6]} 35... Rf1 {[%clk 0:00:07.7]}
36. g4+ {[%clk 0:00:02.8]} 36... Kf4 {[%clk 0:00:06.8]} 37. Qc7+ {[%clk
0:00:02.7]} 37... Kf3 {[%clk 0:00:05.9]} 38. Qg3# {[%clk 0:00:03.4]} 1-0

[Event "*** Titled Tuesday Blitz"]
[Site "Chess.com"]
[Date "2021.04.27"]
[Round "3"]
[White "AEMEffi"]
[Black "davidkalashian"]
[Result "0-1"]
[WhiteElo "2330"]
[BlackElo "2568"]
[TimeControl "180+1"]
[EndTime "10:28:28 PDT"]
[Termination "davidkalashian won by resignation"]

1. d4 {[%clk 0:02:52.3]} 1... Nf6 {[%clk 0:02:59.2]} 2. c4 {[%clk 0:02:52.9]}
2... e6 {[%clk 0:02:59.3]} 3. Nc3 {[%clk 0:02:52.2]} 3... Bb4 {[%clk 0:02:57.1]}
4. e3 {[%clk 0:02:52.5]} 4... c5 {[%clk 0:02:50.7]} 5. Nf3 {[%clk 0:02:49.4]}
5... O-O {[%clk 0:02:48.7]} 6. a3 {[%clk 0:02:46.7]} 6... Bxc3+ {[%clk
0:02:48.4]} 7. bxc3 {[%clk 0:02:47.6]} 7... Nc6 {[%clk 0:02:48.3]} 8. Be2 {[%clk
0:02:44.1]} 8... b6 {[%clk 0:02:47.5]} 9. O-O {[%clk 0:02:43.8]} 9... Ba6 {[%clk
0:02:46.8]} 10. Nd2 {[%clk 0:02:29.9]} 10... Na5 {[%clk 0:02:43.8]} 11. Bd3
{[%clk 0:02:23.1]} 11... Rc8 {[%clk 0:02:40.9]} 12. Qe2 {[%clk 0:02:23.3]} 12...
Qc7 {[%clk 0:02:10.6]} 13. Bb2 {[%clk 0:02:09]} 13... cxd4 {[%clk 0:01:57.1]}
14. cxd4 {[%clk 0:02:09.9]} 14... Bxc4 {[%clk 0:01:55.1]} 15. Rac1 {[%clk
0:01:56.5]} 15... Bxd3 {[%clk 0:01:43.1]} 16. Qxd3 {[%clk 0:01:57.4]} 16... Qb7
{[%clk 0:01:42.8]} 17. e4 {[%clk 0:01:56.9]} 17... d5 {[%clk 0:01:42.6]} 18. e5
{[%clk 0:01:55.7]} 18... Ne4 {[%clk 0:01:38.4]} 19. Nxe4 {[%clk 0:01:55.6]}
19... dxe4 {[%clk 0:01:37.8]} 20. Qe2 {[%clk 0:01:54.6]} 20... Qd5 {[%clk
0:01:32.1]} 21. Rfe1 {[%clk 0:01:51.7]} 21... Nb3 {[%clk 0:01:17.1]} 22. Rxc8
{[%clk 0:01:46.7]} 22... Rxc8 {[%clk 0:01:18]} 23. Qe3 {[%clk 0:01:34.7]} 23...
Rc2 {[%clk 0:01:05.7]} 24. Bc3 {[%clk 0:01:33.8]} 24... a5 {[%clk 0:01:02.8]}
25. a4 {[%clk 0:01:25.8]} 25... h6 {[%clk 0:00:56.1]} 26. Rb1 {[%clk 0:01:22.4]}
26... Qc4 {[%clk 0:00:50.1]} 27. Be1 {[%clk 0:01:04.6]} 27... Nxd4 {[%clk
0:00:47.4]} 28. Rxb6 {[%clk 0:01:03.8]} 28... Re2 {[%clk 0:00:40]} 29. Qc3
{[%clk 0:00:59.5]} 29... Qxc3 {[%clk 0:00:32.7]} 30. Bxc3 {[%clk 0:01:00.4]}
30... Rc2 {[%clk 0:00:32.5]} 31. Bb2 {[%clk 0:00:50.3]} 31... Rc4 {[%clk
0:00:20.7]} 32. Rb8+ {[%clk 0:00:45.4]} 32... Kh7 {[%clk 0:00:20.3]} 33. Rb7
{[%clk 0:00:45.3]} 33... Kg6 {[%clk 0:00:20.4]} 34. h4 {[%clk 0:00:43.1]} 34...
h5 {[%clk 0:00:18.1]} 35. Rd7 {[%clk 0:00:38.8]} 35... Nf5 {[%clk 0:00:15.1]}
36. g3 {[%clk 0:00:34.6]} 36... e3 {[%clk 0:00:15.3]} 37. fxe3 {[%clk
0:00:33.8]} 37... Nxg3 {[%clk 0:00:15.2]} 38. Kg2 {[%clk 0:00:32.6]} 38... Nf5
{[%clk 0:00:15.4]} 39. Rd2 {[%clk 0:00:30.1]} 39... Rxa4 {[%clk 0:00:14.3]} 40.
Bd4 {[%clk 0:00:26.6]} 40... Nxh4+ {[%clk 0:00:13.4]} 41. Kh3 {[%clk 0:00:25.3]}
41... Nf5 {[%clk 0:00:14.3]} 42. Rg2+ {[%clk 0:00:25.3]} 42... Kh6 {[%clk
0:00:14.3]} 43. Bc5 {[%clk 0:00:25.3]} 43... Rc4 {[%clk 0:00:13.3]} 44. Bd4
{[%clk 0:00:23.3]} 44... Nxd4 {[%clk 0:00:12.3]} 45. exd4 {[%clk 0:00:24.2]}
45... Rxd4 {[%clk 0:00:13.2]} 46. Ra2 {[%clk 0:00:24.9]} 46... a4 {[%clk
0:00:12.9]} 47. Re2 {[%clk 0:00:25.8]} 47... g5 {[%clk 0:00:12.4]} 48. Kg3
{[%clk 0:00:25.8]} 48... Rd3+ {[%clk 0:00:12.6]} 49. Kf2 {[%clk 0:00:25.8]}
49... g4 {[%clk 0:00:13.1]} 0-1